bitfinex/quotes_ETHUSD_20220219
["timestamp","ask_amount","ask_price","bid_price","bid_amount"]
[1645239012488,0.67518689,2823.5,2823.4,1.12269187]
[1645239012687,0.67518689,2823.5,2823.3,1.12269284]
[1645239012889,1.05518447,2823.5,2823.4,1.12269422]
[1645239013088,1.05518447,2823.5,2823.4,1.12269404]
[1645239013287,1.05518447,2823.5,2823.3,1.12268994]
[1645239013491,0.67518689,2823.6,2823.4,1.12268763]
[1645239013788,0.67518689,2823.6,2823.2,11.5]
[1645239013990,1.05539884,2823.5,2823.3,1.12272197]
[1645239014187,0.67518689,2823.5,2823.4,1.12273456]
[1645239014388,0.67518689,2823.5,2823.4,1.12272967]
[1645239014594,1.05540676,2823.6,2823.3,1.1227178]
[1645239014889,1.05540676,2823.5,2823.2,11.5]
[1645239015138,0.38021987,2823.4,2823.3,1.12274557]
[1645239015338,0.67518689,2823.5,2823.3,1.12274557]
[1645239015540,0.38021987,2823.6,2823.3,1.12274557]
[1645239015541,0.38021987,2823.4,2823.3,1.12274557]
[1645239015939,0.67518689,2823.4,2823.2,11.5]
[1645239016140,0.67518689,2823.4,2823.3,1.12269221]
[1645239016341,0.67518689,2823.4,2823.3,1.12259252]
[1645239016545,1.05540676,2823.4,2823.2,11.5]
[1645239016744,1.05540676,2823.3,2823.2,11.5]
[1645239016943,3.88021987,2823.3,2823.2,11.5]
[1645239017145,5.78025439,2823.3,2823.2,11.5]
[1645239017343,6.24275352,2823.3,2823.2,11.12284909]
[1645239017543,5.342719,2823.3,2823.2,8.39549525]
[1645239017741,6.24275352,2823.3,2823.2,8.39549525]
[1645239018140,2.88464352,2823.3,2823.2,8.39549525]
[1645239018341,1.984609,2823.3,2823.2,8.39549525]
[1645239018545,1.842719,2823.3,2823.2,8.39549525]
[1645239018989,2.74275352,2823.3,2823.2,8.39549525]
[1645239019490,1.842719,2823.3,2823.2,8.39549525]
[1645239019690,2.362719,2823.3,2823.2,8.39549525]
[1645239020895,1.842719,2823.3,2823.2,8.39549525]
[1645239022193,1.984608,2823.3,2823.2,8.39549525]
[1645239022537,1.842719,2823.3,2823.2,8.39549525]
[1645239024742,1.38021987,2823.3,2823.2,8.39549525]
[1645239028994,2.05479101,2823.3,2823.2,8.39549525]
[1645239029196,1.38021987,2823.3,2823.2,8.39549525]
[1645239029598,0.38021987,2823.3,2823.2,8.39549525]
[1645239029797,0.38021987,2823.3,2823.2,9.5441935]
[1645239030038,0.52209287,2823.3,2823.2,11.0441935]
[1645239030838,0.38021987,2823.3,2823.2,11.0441935]
[1645239032742,0.38021987,2823.3,2823.2,11.05525285]
[1645239037544,0.38021987,2823.3,2823.2,11.0441935]
[1645239037742,0.38021987,2823.3,2823.2,9.89549525]
[1645239038042,0.52208887,2823.3,2823.2,9.89549525]
[1645239038442,0.38021987,2823.3,2823.2,9.89549525]
[1645239038645,0.38021987,2823.3,2823.2,11.03915774]
[1645239038843,0.38021987,2823.3,2823.2,9.89549525]
[1645239039043,0.38021987,2823.3,2823.2,11.03919877]
[1645239039243,0.38021987,2823.3,2823.2,11.03934396]
[1645239039444,0.38021987,2823.3,2823.2,9.89549525]
[1645239039645,0.38021987,2823.3,2823.2,11.03934803]
[1645239039844,0.38021987,2823.3,2823.2,9.89549525]
[1645239040246,0.38021987,2823.3,2823.2,11.03928043]
[1645239040548,0.38021987,2823.3,2823.2,9.89549525]
[1645239040947,0.38021987,2823.3,2823.2,11.03941101]
[1645239041148,0.38021987,2823.3,2823.2,9.89549525]
[1645239041587,0.38021987,2823.3,2823.2,11.03939015]
[1645239041790,0.38021987,2823.3,2823.2,9.89549525]
[1645239041989,0.52208987,2823.3,2823.2,9.89549525]
[1645239042188,0.52208987,2823.3,2823.2,11.03913511]
[1645239042189,0.38021987,2823.3,2823.2,11.03913511]
[1645239042390,0.38021987,2823.3,2823.2,9.89549525]
[1645239042591,0.38021987,2823.3,2823.2,11.03916051]
[1645239042788,0.38021987,2823.3,2823.2,11.03918135]
[1645239042989,0.38021987,2823.3,2823.2,9.89549525]
[1645239043189,0.38021987,2823.3,2823.2,11.03925433]
[1645239043489,0.38021987,2823.3,2823.2,11.03934005]
[1645239043689,0.38021987,2823.3,2823.2,9.89549525]
[1645239043890,0.38021987,2823.3,2823.2,11.0393488]
[1645239044090,0.38021987,2823.3,2823.2,9.89549525]
[1645239044391,0.38021987,2823.3,2823.2,11.0394402]
[1645239044593,0.38021987,2823.3,2823.2,9.89549525]
[1645239044791,0.38021987,2823.3,2823.2,11.03932001]
[1645239045038,0.38021987,2823.3,2823.2,11.03930896]
[1645239045242,0.38021987,2823.3,2823.2,11.03938481]
[1645239045438,0.38021987,2823.3,2823.2,9.89549525]
[1645239045639,0.38021987,2823.3,2823.2,11.03927167]
[1645239045838,0.52208887,2823.3,2823.2,9.89549525]
[1645239046038,0.52208887,2823.3,2823.2,11.03902084]
[1645239046239,0.38021987,2823.3,2823.2,9.89549525]
[1645239046440,0.38021987,2823.3,2823.2,11.03897433]
[1645239046639,0.38021987,2823.3,2823.2,9.89549525]
[1645239046838,0.38021987,2823.3,2823.2,11.03892936]
[1645239047038,0.38021987,2823.3,2823.2,9.89549525]
[1645239047438,0.38021987,2823.3,2823.2,11.03883235]
[1645239047642,0.38021987,2823.3,2823.2,11.03880597]
[1645239047843,0.38021987,2823.3,2823.2,9.89549525]
[1645239048041,0.38021987,2823.3,2823.2,11.03871635]
[1645239048240,0.38021987,2823.3,2823.2,11.03877037]
[1645239048441,0.38021987,2823.3,2823.2,9.89549525]
[1645239048646,0.38021987,2823.3,2823.2,9.43285061]
[1645239049696,0.52209587,2823.3,2823.2,9.43285061]
[1645239049897,0.52209587,2823.3,2823.2,8.28953166]
[1645239050197,0.38021987,2823.3,2823.2,8.28953166]
[1645239051400,0.38021987,2823.3,2823.2,9.46264633]
[1645239051602,0.38021987,2823.3,2823.2,8.28953166]
[1645239054044,0.38021987,2823.3,2823.2,9.46186622]
[1645239055645,0.38021987,2823.3,2823.2,8.28953166]
[1645239056490,1.05469718,2823.3,2823.2,8.28953166]
[1645239056690,0.38021987,2823.3,2823.2,9.46154238]
[1645239056889,0.38021987,2823.3,2823.2,8.28953166]
[1645239057090,0.38021987,2823.3,2823.2,9.461541]
[1645239057287,1.05469718,2823.3,2823.2,8.28953166]
[1645239057490,0.52209587,2823.3,2823.2,9.46154107]
[1645239057891,0.38021987,2823.3,2823.2,9.46154107]
[1645239058490,1.05469718,2823.3,2823.2,8.28953166]
[1645239059092,4.55469718,2823.3,2823.2,8.28953166]
[1645239059292,0.38021987,2823.3,2823.2,8.28953166]
[1645239060345,1.68021987,2823.3,2823.2,8.28953166]
[1645239060541,1.98021987,2823.3,2823.2,8.28953166]
[1645239061342,2.88025439,2823.3,2823.2,8.28953166]
[1645239061545,2.28025439,2823.3,2823.2,8.28953166]
[1645239061741,0.38021987,2823.3,2823.2,8.30059101]
[1645239061945,2.05555409,2823.3,2823.2,8.30059101]
[1645239062142,1.38021987,2823.3,2823.2,8.30059101]
[1645239062743,1.98021987,2823.3,2823.2,6.80059101]
[1645239064503,1.05560998,2823.3,2823.2,6.80059101]
[1645239064704,1.05560998,2823.3,2823.2,7.97276091]
[1645239065105,0.38021987,2823.3,2823.2,7.97276091]
[1645239065505,0.52209087,2823.3,2823.2,7.97276091]
[1645239065808,0.38021987,2823.3,2823.2,7.97276091]
[1645239066607,1.05560998,2823.3,2823.2,7.97276091]
[1645239066806,0.38021987,2823.3,2823.2,7.97276091]
[1645239067206,0.38021987,2823.3,2823.2,7.96170156]
[1645239067652,0.38021987,2823.3,2823.2,6.78953166]
[1645239068653,0.38021987,2823.3,2823.2,5.18502425]
[1645239068854,1.19761359,2823.3,2823.2,5.18502425]
[1645239069055,1.19761359,2823.3,2823.2,6.38675639]
[1645239069252,1.05572659,2823.3,2823.2,6.38675639]
[1645239072700,1.19760459,2823.3,2823.2,6.38675639]
[1645239072902,0.38021987,2823.3,2823.2,6.38675639]
[1645239073906,1.05572659,2823.3,2823.2,6.38675639]
[1645239074901,0.38021987,2823.3,2823.2,6.38675639]
[1645239075350,2.15249987,2823.3,2823.2,6.38675639]
[1645239076151,2.82831289,2823.3,2823.2,6.38675639]
[1645239076351,2.15249987,2823.3,2823.2,6.38675639]
[1645239076556,2.29437787,2823.3,2823.2,6.38675639]
[1645239076753,2.29437787,2823.3,2823.2,5.18502425]
[1645239077360,2.15249987,2823.3,2823.2,5.18502425]
[1645239078454,1.26632987,2823.3,2823.2,5.18502425]
[1645239082297,1.18037738,2823.3,2823.2,5.18502425]
[1645239082845,1.85609831,2823.3,2823.2,6.3879289]
[1645239083746,0.29426738,2823.3,2823.2,6.3879289]
[1645239083945,0.96999676,2823.3,2823.2,6.3879289]
[1645239084145,1.11188176,2823.3,2823.2,6.3879289]
[1645239084745,1.11191322,2823.3,2823.2,6.3879289]
[1645239084947,1.11191322,2823.3,2823.2,6.38802635]
[1645239084948,0.29426738,2823.3,2823.2,6.38802635]
[1645239085148,0.29426738,2823.3,2823.2,5.18502425]
[1645239085347,0.29426738,2823.3,2823.2,6.38802363]
[1645239085546,0.29426738,2823.4,2823.2,6.38802363]
[1645239085749,0.67578612,2823.3,2823.2,5.18502425]
[1645239085948,0.97005346,2823.3,2823.2,6.38796141]
[1645239086148,0.67578608,2823.3,2823.2,6.38796141]
[1645239088097,0.81766508,2823.3,2823.2,6.38796141]
[1645239088298,1.11193246,2823.3,2823.2,6.38796141]
[1645239088901,1.11193246,2823.3,2823.2,6.3878058]
[1645239089098,1.11193246,2823.3,2823.2,5.18502425]
[1645239089297,0.97005346,2823.3,2823.2,6.38798252]
[1645239089502,0.97005346,2823.3,2823.2,5.18502425]
[1645239089701,0.67578608,2823.3,2823.2,5.18502425]
[1645239089901,0.29426738,2823.3,2823.2,6.38805526]
[1645239090148,0.97005346,2823.4,2823.2,6.38807929]
[1645239090350,0.29426738,2823.3,2823.2,5.18502425]
[1645239090749,0.97005346,2823.4,2823.2,6.38803294]
[1645239090949,0.29426738,2823.3,2823.2,5.18502425]
[1645239091153,0.67578608,2823.4,2823.2,6.38803431]
[1645239091351,0.67578608,2823.4,2823.3,1.20301998]
[1645239091549,0.67578608,2823.4,2823.3,1.20320422]
[1645239091750,0.141867,2823.3,2823.2,5.1956291]
[1645239092155,0.29426738,2823.3,2823.2,6.39888923]
[1645239092350,0.29426738,2823.3,2823.2,6.39887499]
[1645239092552,0.29426738,2823.3,2823.2,6.39897858]
[1645239092753,0.97005346,2823.3,2823.2,6.39785383]
[1645239092952,0.97005346,2823.3,2823.2,5.19450399]
[1645239093152,0.29426738,2823.3,2823.2,5.19450399]
[1645239093557,0.67594587,2823.3,2823.2,6.39789222]
[1645239093823,0.67594587,2823.3,2823.2,5.19450399]
[1645239094006,0.67594587,2823.3,2823.2,6.39796153]
[1645239094208,0.67594587,2823.3,2823.2,5.19450399]
[1645239094408,0.67594587,2823.3,2823.2,6.39796241]
[1645239094612,0.67594587,2823.3,2823.2,6.39800624]
[1645239094812,0.67594587,2823.3,2823.2,5.19450399]
[1645239095011,0.67594587,2823.3,2823.2,6.39795843]
[1645239095210,0.67594587,2823.3,2823.2,5.19450399]
[1645239095811,0.81782887,2823.3,2823.2,6.39790904]
[1645239096012,1.11209625,2823.3,2823.2,5.19450399]
[1645239096213,0.97021325,2823.3,2823.2,5.19450399]
[1645239096412,0.97021325,2823.3,2823.2,6.39795747]
[1645239096611,0.97021325,2823.3,2823.2,5.19450399]
[1645239096817,0.97021325,2823.3,2823.2,6.39792334]
[1645239097013,1.1943019,2823.3,2823.2,3.59003373]
[1645239097212,0.29426738,2823.3,2823.2,3.59003373]
[1645239097648,1.1943019,2823.3,2823.2,3.59003373]
[1645239097851,0.29426738,2823.3,2823.2,3.59003373]
[1645239098852,0.29426738,2823.3,2823.2,4.82349086]
[1645239099753,0.43615638,2823.3,2823.2,3.59003373]
[1645239100151,0.29426738,2823.3,2823.2,3.59003373]
[1645239100650,1.1943019,2823.3,2823.2,3.59003373]
[1645239101052,0.29426738,2823.3,2823.2,3.59003373]
[1645239101499,1.1943019,2823.3,2823.2,3.59003373]
[1645239101894,0.29426738,2823.3,2823.2,3.59003373]
[1645239102097,1.1943019,2823.3,2823.2,3.59003373]
[1645239102297,0.29426738,2823.3,2823.2,3.59003373]
[1645239102500,0.31457814,2823.3,2823.2,3.59003373]
[1645239102896,1.21589916,2823.3,2823.2,3.59003373]
[1645239103796,1.35779416,2823.3,2823.2,3.59003373]
[1645239103994,1.21589916,2823.3,2823.2,3.59003373]
[1645239104896,0.31457814,2823.3,2823.2,3.59003373]
[1645239106552,1.21559716,2823.3,2823.2,3.59003373]
[1645239107552,0.45647614,2823.3,2823.2,3.59003373]
[1645239107755,1.357392,2823.3,2823.2,3.59003373]
[1645239107952,1.215494,2823.3,2823.2,3.59003373]
[1645239109108,0.31457814,2823.3,2823.2,3.59003373]
[1645239111307,1.61457814,2823.3,2823.2,3.59003373]
[1645239111507,1.75648014,2823.3,2823.2,3.59003373]
[1645239112011,1.61457814,2823.3,2823.2,3.59003373]
[1645239112659,2.515494,2823.3,2823.2,3.59003373]
[1645239114559,2.13457814,2823.3,2823.2,3.59003373]
[1645239115361,2.27648214,2823.3,2823.2,3.59003373]
[1645239115560,2.13457814,2823.3,2823.2,3.59003373]
[1645239117005,2.13457814,2823.3,2823.2,2.25012667]
[1645239117613,3.03520715,2823.3,2823.2,2.25012667]
[1645239118008,2.13457814,2823.3,2823.2,2.25012667]
[1645239119208,2.27648114,2823.3,2823.2,2.25012667]
[1645239119409,2.13457814,2823.3,2823.2,2.25012667]
[1645239122258,2.11269642,2823.3,2823.2,2.2602883]
[1645239122661,3.01325469,2823.3,2823.2,2.2602883]
[1645239123062,3.15515369,2823.3,2823.2,2.2602883]
[1645239123462,3.01325469,2823.3,2823.2,2.2602883]
[1645239126705,3.15515369,2823.3,2823.2,2.2602883]
[1645239127303,3.01325469,2823.3,2823.2,2.2602883]
[1645239127546,3.03512073,2823.3,2823.2,2.25012667]
[1645239128748,2.13456246,2823.3,2823.2,2.25012667]
[1645239129550,3.03501562,2823.3,2823.2,2.25012667]
[1645239134705,3.17691662,2823.3,2823.2,2.25012667]
[1645239135150,3.03501562,2823.3,2823.2,2.25012667]
[1645239135350,2.13456246,2823.3,2823.2,2.25012667]
[1645239135950,3.03522806,2823.3,2823.2,2.25012667]
[1645239136654,2.13456246,2823.3,2823.2,2.25012667]
[1645239137051,2.13456246,2823.3,2823.2,1.48435557]
[1645239138654,2.27646246,2823.3,2823.2,1.48435557]
[1645239140100,2.13456246,2823.3,2823.2,1.48435557]
[1645239146504,2.27646346,2823.3,2823.2,1.48435557]
[1645239146910,2.13456246,2823.3,2823.2,1.48435557]
[1645239150157,2.27646046,2823.3,2823.2,1.48435557]
[1645239150558,2.13456246,2823.3,2823.2,1.48435557]
[1645239151561,3.0364335,2823.3,2823.2,1.48435557]
[1645239152360,3.01456746,2823.3,2823.2,1.49457424]
[1645239153561,2.49456746,2823.3,2823.2,1.49457424]
[1645239157209,2.49456746,2823.3,2823.2,1.01410705]
[1645239157855,2.51018329,2823.3,2823.2,1.01410705]
[1645239158257,1.75020325,2823.3,2823.2,1.01410705]
[1645239158456,1.31561583,2823.3,2823.2,1.01410705]
[1645239158657,1.54792169,2823.3,2823.2,1.01410705]
[1645239158956,2.4496835,2823.3,2823.2,1.01410705]
[1645239160361,1.54792169,2823.3,2823.2,1.01410705]
[1645239160860,2.44977119,2823.3,2823.2,1.01410705]
[1645239161061,1.54792169,2823.3,2823.2,1.01410705]
[1645239162905,1.56065526,2823.3,2823.2,1.01410705]
[1645239163104,2.91071229,2823.3,2823.2,1.01410705]
[1645239163504,1.56065526,2823.3,2823.2,1.01410705]
[1645239163706,2.91071229,2823.3,2823.2,1.01410705]
[1645239163905,1.56065526,2823.3,2823.2,1.01410705]
[1645239166156,1.70255426,2823.3,2823.2,1.01410705]
[1645239166556,1.56065526,2823.3,2823.2,1.01410705]
[1645239169815,7.3842246,2823.3,2823.2,1.01410705]
[1645239170115,4.3864385,2823.2,2823.0,0.00179502]
[1645239170314,1.75230586,2823.1,2823.0,0.00179502]
[1645239170610,5.55230586,2823.1,2822.4,1.27025789]
[1645239170812,0.90202562,2822.5,2822.4,1.27025789]
[1645239171013,0.23230586,2822.5,2822.4,1.27025789]
[1645239171414,0.90202562,2822.5,2822.0,1.27025789]
[1645239171611,0.8864191,2822.3,2822.0,1.27025789]
[1645239171810,0.23230586,2822.2,2822.0,1.27025789]
[1645239172213,0.23230586,2822.2,2822.1,0.00179534]
[1645239172557,0.23230586,2822.2,2822.1,1.27205323]
[1645239172961,1.11874586,2822.2,2822.1,1.27205323]
[1645239173157,1.11874586,2822.2,2822.1,1.27025789]
[1645239174362,0.23230586,2822.2,2822.1,1.27025789]
[1645239174966,0.23230586,2822.3,2822.1,1.27025789]
[1645239175163,0.23230586,2822.3,2822.0,0.0017954]
[1645239175164,0.23230586,2822.2,2822.0,0.0017954]
[1645239175363,0.23230586,2822.1,2822.0,0.0017954]
[1645239175565,1.7727175,2822.4,2821.9,1.2641086]
[1645239175566,0.23230586,2822.3,2821.9,1.2641086]
[1645239175763,0.23230586,2822.3,2822.0,0.00179542]
[1645239175964,0.23230586,2822.4,2822.0,0.00179542]
[1645239176166,0.23230586,2822.3,2822.0,0.00179542]
[1645239176413,0.23230586,2822.2,2822.0,0.00179542]
[1645239176616,0.23230586,2822.1,2821.9,1.2641086]
[1645239176813,0.23230586,2822.0,2821.9,1.2641086]
[1645239177014,0.23230586,2822.4,2821.9,1.2641086]
[1645239177215,0.23230586,2822.3,2821.9,1.2641086]
[1645239177416,0.23230586,2822.2,2821.9,1.2641086]
[1645239177615,0.23230586,2822.1,2821.9,1.2641086]
[1645239177813,0.02505299,2822.2,2821.9,1.2641086]
[1645239178013,0.23209799,2822.1,2821.9,1.2641086]
[1645239178217,0.02505299,2822.2,2821.9,1.26590404]
[1645239179117,0.02505299,2822.2,2821.9,1.2641086]
[1645239179322,0.02505299,2822.2,2821.9,1.26590404]
[1645239179718,0.23200669,2822.1,2821.9,1.26590404]
[1645239180072,0.88629,2822.7,2822.2,0.40948675]
[1645239180289,0.88629,2822.7,2822.3,1.2641086]
[1645239180290,0.23253332,2822.6,2822.3,1.2641086]
[1645239181670,0.23253332,2822.6,2822.3,1.26590389]
[1645239182771,0.23253332,2822.6,2822.3,1.2641086]
[1645239182974,1.67652954,2822.9,2822.3,1.2641086]
[1645239182975,0.23253332,2822.5,2822.3,1.2641086]
[1645239183171,0.23253332,2822.4,2822.3,1.26590389]
[1645239183578,0.23253332,2822.8,2822.3,1.26590389]
[1645239183820,0.23253332,2822.7,2822.3,1.2641086]
[1645239184017,0.23253332,2822.6,2822.3,1.2641086]
[1645239184220,0.23253332,2822.5,2822.4,0.00179525]
[1645239184617,0.23253332,2822.7,2822.4,0.00179525]
[1645239185017,0.23253332,2822.7,2822.3,1.2641086]
[1645239185215,2.00509332,2822.7,2822.3,1.2641086]
[1645239185419,3.00509332,2822.7,2822.4,0.00179524]
[1645239185618,0.23253332,2822.6,2822.4,0.00179524]
[1645239186219,0.23253332,2822.6,2822.3,1.2641086]
[1645239186619,0.23253332,2822.6,2822.4,0.00179526]
[1645239187418,0.23253332,2822.6,2822.3,1.2641086]
[1645239187662,0.23253332,2822.6,2822.4,0.00179526]
[1645239188261,2.89159222,2822.6,2822.4,0.00179526]
[1645239188459,1.11890332,2822.5,2822.4,0.00179526]
[1645239188663,1.11890332,2822.5,2822.3,1.2641086]
[1645239188861,0.23253332,2822.4,2822.3,1.2641086]
[1645239191617,0.23253332,2822.5,2822.3,1.2641086]
[1645239192221,0.25668053,2822.5,2822.3,1.2641086]
[1645239192418,0.23253332,2822.4,2822.3,1.2641086]
[1645239192616,0.23253332,2822.4,2822.3,1.2659039]
[1645239193417,0.23253332,2822.4,2822.3,1.2641086]
[1645239195061,0.23253332,2822.4,2822.2,0.41128207]
[1645239195861,0.23253332,2822.4,2822.3,1.2628562]
[1645239197862,0.24458146,2822.4,2822.3,1.2628562]
[1645239200119,0.24458146,2822.4,2822.3,1.26295334]
[1645239200317,0.24458146,2822.4,2822.2,0.41128207]
[1645239200522,0.23253332,2822.3,2822.2,0.41128207]
[1645239200719,0.23253332,2822.3,2822.2,0.40948675]
[1645239200920,0.23253332,2822.3,2822.2,1.67452956]
[1645239201121,0.23253332,2822.3,2822.2,0.41128209]
[1645239201919,0.23253332,2822.3,2822.2,0.40948675]
[1645239202323,0.23253332,2822.3,2822.2,1.6727839]
[1645239204471,0.37445232,2822.3,2822.2,1.671683]
[1645239204665,0.23253332,2822.3,2822.2,1.671683]
[1645239205063,0.23253332,2822.3,2822.2,1.65933698]
[1645239207729,0.24590257,2822.3,2822.2,1.65933698]
[1645239212766,0.23253332,2822.3,2822.2,1.67039716]
[1645239213265,0.67652954,2822.5,2822.2,1.67039716]
[1645239213467,0.67652954,2822.5,2822.3,1.26329715]
[1645239214120,0.67652954,2822.5,2822.3,1.26509245]
[1645239215117,0.67652954,2822.5,2822.3,1.26329715]
[1645239215318,0.67652954,2822.5,2822.3,1.26509245]
[1645239215719,0.90906286,2822.4,2822.3,1.26509245]
[1645239215918,0.23253332,2822.4,2822.3,1.26509245]
[1645239216418,0.23253332,2822.4,2822.3,1.26329715]
[1645239216618,0.67652954,2822.5,2822.3,1.26329715]
[1645239217223,0.0109441,2822.4,2822.3,1.26329715]
[1645239217667,0.24347742,2822.4,2822.3,1.26329715]
[1645239219269,0.92000696,2822.4,2822.3,1.26329715]
[1645239219473,1.06192196,2822.4,2822.3,1.26329715]
[1645239219671,0.38539242,2822.4,2822.3,1.26329715]
[1645239219876,0.92000696,2822.4,2822.3,1.26329715]
[1645239220771,0.24347742,2822.4,2822.3,1.26329715]
[1645239221612,0.24347742,2822.4,2822.3,1.26532264]
[1645239221812,0.24347742,2822.4,2822.3,1.26532974]
[1645239222016,0.24347742,2822.4,2822.2,0.40889533]
[1645239222212,0.23253332,2822.3,2822.2,0.39783515]
[1645239222416,0.23253332,2822.3,2822.2,1.66152163]
[1645239222613,0.23253332,2822.3,2822.2,1.66330972]
[1645239223616,0.23253332,2822.3,2822.2,1.66151438]
[1645239227368,0.25659381,2822.3,2822.2,1.66151438]
[1645239242576,0.23253332,2822.3,2822.2,1.66151438]
[1645239242775,0.23253332,2822.3,2822.2,0.39603983]
[1645239243178,0.23253332,2822.3,2822.2,1.66186134]
[1645239243375,0.23253332,2822.3,2822.2,0.39603983]
[1645239244014,0.23253332,2822.3,2822.2,1.66179225]
[1645239244215,0.23253332,2822.3,2822.2,0.39603983]
[1645239244711,0.23253332,2822.3,2822.2,1.66178302]
[1645239247682,3.21903762,2822.3,2822.2,0.37223032]
[1645239247879,4.36924532,2822.3,2822.2,0.37223032]
[1645239251418,5.2698805,2822.3,2822.2,0.37223032]
[1645239254023,5.2698805,2822.3,2822.1,0.00179536]
[1645239254024,5.5,2822.2,2822.1,0.00179536]
[1645239254226,5.5,2822.2,2821.3,0.00443443]
[1645239254227,3.0,2822.1,2821.4,1.25684657]
[1645239254424,0.67527382,2821.5,2821.1,3.50443443]
[1645239254622,0.52,2821.4,2821.2,1.24862448]
[1645239254820,0.23253332,2821.3,2821.1,0.00443679]
[1645239255076,0.75253332,2821.3,2821.2,1.24866523]
[1645239255473,3.41296532,2821.3,2821.1,0.00443679]
[1645239255671,0.23253332,2821.2,2821.1,0.00443679]
[1645239255973,0.23253332,2821.2,2820.9,0.00443679]
[1645239255974,1.53253332,2821.2,2820.9,0.00443679]
[1645239256176,0.23253332,2821.1,2821.0,1.24731302]
[1645239256570,0.88685,2821.0,2820.6,0.00443679]
[1645239256872,0.23253332,2820.9,2820.7,1.24753853]
[1645239257270,0.23253332,2820.9,2820.7,1.2496594]
[1645239258273,0.37452432,2820.9,2820.7,1.24753853]
[1645239258474,0.23253332,2820.8,2820.7,1.24753853]
[1645239258685,2.6605504,2821.0,2820.7,1.2496594]
[1645239258686,1.11940332,2820.9,2820.7,1.2496594]
[1645239258937,0.23253332,2820.8,2820.7,1.2496594]
[1645239259139,0.88687,2820.9,2820.7,1.2496594]
[1645239259534,0.88687,2820.9,2820.7,1.24753853]
[1645239259734,0.88687,2820.9,2820.7,1.2496594]
[1645239260739,0.88687,2820.9,2820.7,1.24753853]
[1645239260941,0.88687,2820.9,2820.7,1.2496594]
[1645239261640,1.18676,2821.2,2820.7,1.2496594]
[1645239261937,0.24825683,2821.1,2820.8,0.00443679]
[1645239262136,0.24825683,2821.1,2820.8,0.00655759]
[1645239262337,0.01182355,2820.9,2820.8,0.0021208]
[1645239263170,0.01182355,2820.9,2820.5,0.00443679]
[1645239263372,0.01182355,2820.9,2820.7,0.00212084]
[1645239263572,0.01182355,2820.9,2820.7,0.00655763]
[1645239263973,1.78565355,2820.9,2820.7,0.00212084]
[1645239264373,3.67256675,2820.9,2820.7,0.00443679]
[1645239264572,0.88691,2820.8,2820.7,0.00655766]
[1645239264773,0.88691,2820.8,2820.7,0.00212087]
[1645239264976,0.01182355,2820.9,2820.8,1.47908733]
[1645239265174,0.01182355,2820.9,2820.8,2.72159261]
[1645239266628,0.01182355,2820.9,2820.8,1.47908733]
[1645239267024,0.70947437,2821.1,2820.8,1.47908733]
[1645239267425,0.01182355,2820.9,2820.8,1.47908733]
[1645239270168,0.15381055,2820.9,2820.8,2.72052369]
[1645239270368,0.15381055,2820.9,2820.8,1.47908733]
[1645239272070,0.141987,2820.9,2820.8,1.47908733]
[1645239272471,1.915797,2820.9,2820.8,1.47908733]
[1645239275217,0.141987,2820.9,2820.8,1.47908733]
[1645239275619,0.141987,2820.9,2820.8,1.47821263]
[1645239277675,0.15444509,2820.9,2820.8,1.47821263]
[1645239281178,0.15444509,2820.9,2820.8,2.72085293]
[1645239281429,0.01245809,2820.9,2820.8,2.72085293]
[1645239282426,0.01404242,2820.9,2820.8,2.72085293]
[1645239284230,0.26269949,2820.9,2820.8,2.72085293]
[1645239284628,0.26269949,2820.9,2820.8,1.47821263]
[1645239285076,0.26269949,2820.9,2820.8,2.72195721]
[1645239285981,0.26269949,2820.9,2820.8,1.47821263]
[1645239287584,0.27671484,2820.9,2820.8,1.47821263]
[1645239289026,2.05054484,2820.9,2820.8,1.47821263]
[1645239290026,2.05054484,2820.9,2820.8,2.72395166]
[1645239290622,2.05054484,2820.9,2820.8,1.47821263]
[1645239292129,2.05054484,2820.9,2820.8,2.72579761]
[1645239293369,2.05054484,2820.9,2820.8,1.47821263]
[1645239295467,2.05054484,2820.9,2820.8,2.7263199]
[1645239295869,2.05054484,2820.9,2820.8,1.47821263]
[1645239296071,2.19253484,2820.9,2820.8,2.72621398]
[1645239296320,2.05054484,2820.9,2820.8,2.72621398]
[1645239296921,2.72581866,2820.9,2820.8,1.47821263]
[1645239297121,2.72581866,2820.9,2820.8,1.47739173]
[1645239297323,3.72581866,2820.9,2820.8,1.47739173]
[1645239297723,3.69776089,2820.9,2820.8,1.47739173]
[1645239298122,3.02248707,2820.9,2820.8,1.47739173]
[1645239298319,3.02248707,2820.9,2820.8,2.72608792]
[1645239298523,3.69776089,2820.9,2820.8,2.72608792]
[1645239299122,3.02248707,2820.9,2820.8,2.72608792]
[1645239299521,1.24865707,2820.9,2820.8,2.72608792]
[1645239299923,1.39065207,2820.9,2820.8,2.72608792]
[1645239300172,0.39065207,2820.9,2820.8,2.72608792]
[1645239301372,0.24865707,2820.9,2820.8,2.72608792]
[1645239301872,1.77388,2820.9,2820.8,2.72608792]
[1645239302072,2.02253707,2820.9,2820.8,2.72608792]
[1645239302271,3.02253707,2820.9,2820.8,2.72608792]
[1645239302469,2.02253707,2820.9,2820.8,2.72608792]
[1645239302670,3.02253707,2820.9,2820.8,2.72608792]
[1645239303275,3.69781089,2820.9,2820.8,2.72608792]
[1645239303922,3.83981089,2820.9,2820.8,2.72608792]
[1645239304115,3.69781089,2820.9,2820.8,2.72608792]
[1645239304516,1.92393089,2820.9,2820.8,2.72608792]
[1645239304719,1.24865707,2820.9,2820.8,2.72608792]
[1645239304917,0.24865707,2820.9,2820.8,2.72608792]
[1645239305929,2.02252707,2820.9,2820.8,2.72608792]
[1645239306321,3.02252707,2820.9,2820.8,2.72717166]
[1645239306521,3.69863486,2820.9,2820.8,2.72717166]
[1645239307122,3.69863486,2820.9,2820.8,1.47739173]
[1645239307321,3.69863486,2820.9,2820.8,2.72722776]
[1645239307580,3.69855697,2820.9,2820.8,2.72722988]
[1645239307772,3.69855697,2820.9,2820.8,1.47739173]
[1645239307773,3.02252707,2820.9,2820.8,1.47739173]
[1645239307972,3.16452807,2820.9,2820.8,1.47739173]
[1645239308177,3.69853944,2820.9,2820.8,2.7272287]
[1645239308376,1.92466944,2820.9,2820.8,2.7272287]
[1645239309276,0.92466944,2820.9,2820.8,2.7272287]
[1645239309474,1.92466944,2820.9,2820.8,2.7272287]
[1645239309878,0.92466944,2820.9,2820.8,2.7272287]
[1645239310079,1.92466944,2820.9,2820.8,2.7272287]
[1645239311179,1.24865707,2820.9,2820.8,2.7272287]
[1645239311423,0.24865707,2820.9,2820.8,2.7272287]
[1645239314021,2.02252707,2820.9,2820.8,2.7272287]
[1645239314725,2.69853944,2820.9,2820.8,2.7272287]
[1645239316404,2.69858013,2820.9,2820.8,2.72738924]
[1645239316805,3.69858013,2820.9,2820.8,2.72738924]
[1645239317105,2.43557707,2820.9,2820.8,1.47739173]
[1645239317307,1.73557707,2820.9,2820.8,1.47739173]
[1645239317505,2.73557707,2820.9,2820.8,1.47739173]
[1645239319521,2.87758307,2820.9,2820.8,1.47739173]
[1645239319918,2.73557707,2820.9,2820.8,1.47634066]
[1645239320325,3.63594217,2820.9,2820.8,1.47634066]